Cogmind - Beta 16 @@@ ROGUE MODE // 2026.01.19 @ 21:12:11 Player: Lunishko Result: Destroyed by D-53 Grenadier with Mini Grenade Launcher Performance ------------- Evolutions (0) 0 Regions Visited (2) 400 Robots Destroyed (0) 0 Value Destroyed (0) 0 Prototype IDs (0) 0 Alien Tech Used (0) 0 Bonus (0) 0 TOTAL SCORE: 400 Bonus ------- None Cogmind --------- Core Integrity 0/250 Matter 278/300 Energy 125/125 System Corruption 0% Temperature Cool (0) Movement Treading (160) Location -10/Mines Parts ------- > --- POWER (1) -------- Light Ion Engine > --- PROPULSION (2) --- Light Treads Light Treads > --- UTILITY (2) ------ Small Storage Unit Structural Scanner > --- WEAPON (2) ------- Assault Rifle > --- INVENTORY (8) ---- Sensor Array Propulsion Shielding Light Assault Rifle Light Assault Rifle Peak State ------------ > --- POWER ------------ Light Ion Engine > --- PROPULSION ------- Light Treads Light Treads > --- UTILITY ---------- Small Storage Unit Structural Scanner > --- WEAPON ----------- Assault Rifle Light Assault Rifle > --- INVENTORY -------- Light Assault Rifle [Rating: 7] Favorites ----------- Power Light Ion Engine Engine Light Ion Engine Propulsion Light Treads Treads Light Treads Utility Small Storage Unit Device Structural Scanner Storage Small Storage Unit Weapon Assault Rifle Ballistic Gun Assault Rifle Ballistic Cannon Light Cannon Build | -11 -10 -10 ------- Run | Yrd Mat Min Slots Evolved . | . . . Power . | . . . Propulsion . | . . . Utility . | . . . Weapon . | . . . Parts Attached 9 | 7 1 1 Power 1 | 1 . . Engine 1 | 1 . . Core . | . . . Reactor . | . . . Propulsion 2 | 2 . . Treads 2 | 2 . . Leg . | . . . Wheel . | . . . Hover . | . . . Flight . | . . . Utility 2 | 1 1 . Device 1 | . 1 . Storage 1 | 1 . . Processor . | . . . Hackware . | . . . Protection . | . . . Artifact . | . . . Weapon 4 | 3 . 1 Energy Gun . | . . . Energy Cannon . | . . . Ballistic Gun 3 | 3 . . Ballistic Cannon 1 | . . 1 Launcher . | . . . Special Weapon . | . . . Impact Weapon . | . . . Slashing Weapon . | . . . Piercing Weapon . | . . . Special Melee Weapon . | . . . Unidentified Prototypes . | . . . Parts Lost 1 | . . 1 Power . | . . . Propulsion . | . . . Utility . | . . . Weapon 1 | . . 1 Highest Loss Streak 1 | . . 1 To Critical Strikes . | . . . Average Backups 3 | . 1 3 Power . | . . . Propulsion . | . . . Utility 1 | . . 2 Weapon 1 | . 1 1 Tool/Special . | . . . Unused Backups 2 | . . 2 Power . | . . . Propulsion . | . . . Utility 2 | . . 2 Weapon . | . . . Tool/Special . | . . . Average Slot Usage (%) 98 | . 94 99 Engine 14 | . 14 14 Treads 28 | . 28 28 Device 12 | . 8 14 Storage 14 | . 14 14 Ballistic Gun 18 | . 28 16 Ballistic Cannon 8 | . . 11 Peak Build Rating 7 | 6 7 7 Average Rating 6 | 4 6 6 On Entrance 4 | . 6 7 Avg Prop Armor Cover (%) . | . . . Naked Turns . | . . . Heaviest Build 14 | 11 12 14 Greatest Support 40 | 40 40 40 Greatest Overweight (x) . | . . . Average Overweight (x) . | . . . Largest Inventory Capacity 8 | 8 8 8 Average Capacity 7 | 7 8 8 Most Carried 4 | 1 3 4 Average Carried 3 | . 2 3 Final Capacity 8 | 8 8 8 Final Carried 4 | 1 3 4 Class Distribution -------------------- 100% | Mutant Dominant Class ---------------- Mutant | -10/Materials Mutant | -10/Mines Resources | -11 -10 -10 ----------- Run | Yrd Mat Min Matter Collected 290 | 268 12 10 Remotely . | . . . Salvage Created . | . . . Parts . | . . . Haulers Intercepted . | . . . Recyclers Shooed . | . . . Parts Field Recycled . | . . . Retrieved Matter . | . . . Parts Self-Destructed . | . . . Prevented . | . . . Parts Restored . | . . . Kills | -11 -10 -10 ------- Run | Yrd Mat Min Combat Hostiles Destroyed . | . . . Classes Destroyed . | . . . Best Kill Streak . | . . . Combat Bots Only . | . . . Max Kills in Single Turn . | . . . Gunslinging . | . . . Exploded . | . . . Melee . | . . . Uniques/NPCs Destroyed . | . . . Combat | -11 -10 -10 -------- Run | Yrd Mat Min Hostile Shots Fired 25 | . 8 17 Missed 5 | . 3 2 Hits 20 | . 5 15 Projectile 20 | . 5 15 AOE 16 | . . 16 Damage Taken 669 | . 37 632 Core 267 | . 14 253 Absorbed by Shields . | . . . Core Remaining (%) 100 | 100 . . Volleys Fired 5 | . . 5 Largest 2 | . . 2 Hottest 50 | . . 50 Shots Fired 8 | . . 8 Gun 5 | . . 5 Cannon 3 | . . 3 Launcher . | . . . Special . | . . . Kinetic 8 | . . 8 Thermal . | . . . Explosive . | . . . Electromagnetic . | . . . Robot Hit Streak 2 | . . 2 Robot Miss Streak 3 | . . 3 Penetration Max . | . . . Secondary Targets . | . . . Shots Hit Robots 4 | . . 4 Core Hits 1 | . . 1 Critical Kills . | . . . Critical Parts Destroyed . | . . . Critical Strikes 1 | . . 1 Blast 1 | . . 1 Melee Attacks . | . . . Impact . | . . . Slashing . | . . . Piercing . | . . . Sneak Attacks . | . . . Combat Hostiles . | . . . Follow-up Attacks . | . . . Damage Inflicted 78 | . . 78 Guns 24 | . . 24 Cannons 54 | . . 54 Explosions . | . . . Melee . | . . . Ramming . | . . . Kinetic 78 | . . 78 Thermal . | . . . Explosive . | . . . Electromagnetic . | . . . Impact . | . . . Slashing . | . . . Piercing . | . . . Highest Corruption . | . . . Average Corruption . | . . . Corruption Purged . | . . . Corruption Blocked . | . . . Overload Shots . | . . . Overflow Damage 12 | . . 12 Projectiles 12 | . . 12 Explosions . | . . . Melee . | . . . Knockbacks 2 | . . 2 Impact . | . . . Kinetic 2 | . . 2 Secondary . | . . . Self-Inflicted Damage . | . . . Shots . | . . . Rammed . | . . . Targets Rammed . | . . . Kicked . | . . . Crushed . | . . . Highest Temperature . | . . . Average Temperature . | . . . Received Heat Transfer . | . . . Siege Activations . | . . . Martial Activations . | . . . Shielding Activations . | . . . Robots Disrupted . | . . . Combat Hostiles . | . . . Robots Corrupted . | . . . Combat Hostiles . | . . . Parts Fried . | . . . Impact Corruptions . | . . . Robots Melted . | . . . Combat Hostiles . | . . . Parts Melted . | . . . Heat Transferred . | . . . Parts Sabotaged . | . . . Parts Stolen . | . . . Parts Stripped . | . . . Power Chain Reactions . | . . . Alert | -11 -10 -10 ------- Run | Yrd Mat Min Maximum Alert Level . | . . . Low Security (%) 100 | 100 100 100 Level 1 . | . . . Level 2 . | . . . Level 3 . | . . . Level 4 . | . . . Level 5 . | . . . High Security . | . . . Max Security . | . . . Peak Influence 5 | . 5 . Initial . | . . . Average . | . . . Influence Increases 5 | . 5 . Successful Hack 5 | . 5 . Influence Decreases 5 | . 5 . Time Decay 5 | . 5 . Squads Dispatched 1 | . 1 . Investigation . | . . . Extermination . | . . . Reinforcement 1 | . 1 . Assault . | . . . Garrison . | . . . Intercept . | . . . Searches Triggered . | . . . Construction Impeded . | . . . Haulers Reinforced . | . . . Active Scanning Responses . | . . . Cargo Convoy Interrupts . | . . . Stealth | -11 -10 -10 --------- Run | Yrd Mat Min Distress Signals 1 | . 1 . Communications Jammed . | . . . Distress Signals . | . . . Times Spotted 3 | . 1 2 Peak Tracking Total 2 | . 1 2 Tactical Retreats . | . . . Traps | -11 -10 -10 ------- Run | Yrd Mat Min Traps Triggered . | . . . Indirectly . | . . . Trap Hack Attempts . | . . . Triggered . | . . . Disarmed . | . . . Reprogrammed . | . . . Reused . | . . . Traps Extracted . | . . . Installed . | . . . Triggered . | . . . Machines | -11 -10 -10 ---------- Run | Yrd Mat Min Machines Disabled . | . . . Max in Single Turn . | . . . Machines Repaired . | . . . Machines Dismantled . | . . . Machines Sabotaged . | . . . Overloaded Fab Kills . | . . . Hacking | -11 -10 -10 --------- Run | Yrd Mat Min Machines Accessed 1 | . 1 . Terminals 1 | . 1 . Fabricators . | . . . Repair Stations . | . . . Recycling Units . | . . . Scanalyzers . | . . . Garrison Access . | . . . Total Hacks 2 | . 2 . Successful 1 | . 1 . Failed 1 | . 1 . Catastrophic . | . . . Database Lockouts . | . . . Manual 2 | . 2 . Terminals 2 | . 2 . Fabricators . | . . . Repair Stations . | . . . Recycling Units . | . . . Scanalyzers . | . . . Garrison Access . | . . . Terminal Hacks . | . . . Fabricator Hacks . | . . . Repair Station Hacks . | . . . Recycling Unit Hacks . | . . . Scanalyzer . | . . . Garrison Access Hacks . | . . . Unauthorized Hacks 1 | . 1 . Terminals 1 | . 1 . Botnet 1 | . 1 . Fabricators . | . . . Repair Stations . | . . . Recycling Units . | . . . Scanalyzers . | . . . Garrison Access . | . . . Data Cores Recovered . | . . . Used . | . . . Hacking Detections 1 | . 1 . Full Trace Events . | . . . Feedback Events . | . . . Feedback Blocked . | . . . Robot Schematics Acquired . | . . . Robots Built . | . . . Authchips . | . . . Time . | . . . Total Robot Build Rating . | . . . Part Schematics Acquired . | . . . Parts Built . | . . . Authchips . | . . . Time . | . . . Total Part Build Rating . | . . . Part Studies Acquired . | . . . Parts Repaired . | . . . Time . | . . . Parts Recycled . | . . . Recycled Matter . | . . . Retrieved Matter . | . . . Retrieved Components . | . . . Parts Scanalyzed . | . . . Part Schematics Acquired . | . . . Parts Damaged . | . . . Bothacking | -11 -10 -10 ------------ Run | Yrd Mat Min Used RIF Installer . | . . . Robots Hacked . | . . . Non-combat . | . . . Combat . | . . . Robot Hacks Applied . | . . . Relay Couplers Released . | . . . Fabnet Peak Effective % . | . . . Robots Rewired . | . . . Allies Hacked . | . . . Hacks Repelled . | . . . Allies | -11 -10 -10 -------- Run | Yrd Mat Min Total Allies . | . . . Largest Group . | . . . Highest-Rated Group . | . . . Highest-Rated Ally . | . . . Total Orders . | . . . Ally Attacks . | . . . Total Damage . | . . . Kills . | . . . Allies Corrupted . | . . . Allies Melted . | . . . Intel | -11 -10 -10 ------- Run | Yrd Mat Min Active Infowar (turns) 391 | . 61 330 Structural 391 | . 61 330 Robot Analysis Total . | . . . Derelict Logs Recovered . | . . . Drone Launches . | . . . Drone Recoveries . | . . . Exploration | -11 -10 -10 ------------- Run | Yrd Mat Min Turns Passed 481 | 60 91 330 Spaces Moved 286 | 34 55 197 Core 3 | 3 . . Treads 283 | 31 55 197 Legs . | . . . Wheels . | . . . Hover . | . . . Flight . | . . . Fastest Speed 50 | 50 160 160 Average Speed 158 | 150 160 160 Slowest Speed 160 | 160 160 160 Overloaded Moves . | . . . Propulsion Burnouts . | . . . Robots Hopped . | . . . Potential Cave-ins . | . . . Cave-ins Triggered . | . . . Exploration Rate (%) 20 | 3 15 43 Regions Visited 2 Branch Regions 1 Pre-discovered Areas . | . . . Known Exits Taken . | . . . Unknown Exits Taken 2 | 1 1 . Scrap Searched 1 | . . 1 Spaces Dug . | . . . Terrain Destroyed . | . . . Melee . | . . . Projectile . | . . . AOE . | . . . Terrain Rammed . | . . . Walls Destroyed . | . . . Machines Disabled . | . . . Actions | -11 -10 -10 --------- Run | Yrd Mat Min Total 302 | 40 58 204 Wait . | . . . Move 284 | 33 54 197 Hop . | . . . Pick Up 4 | . 3 1 Fast Attach 6 | 6 . . Attach 1 | . 1 . Detach . | . . . Swap 2 | 1 . 1 Drop . | . . . Fire 5 | . . 5 Melee . | . . . Ram . | . . . Kick . | . . . Crush . | . . . Escape Stasis . | . . . Rewire . | . . . Trap . | . . . Miscellaneous . | . . . Route ------- -11/Scrapyard -10/Materials (discovered 2 exits: [*Min] / [Sub]) -10/Mines History --------- Turn | Location | Event 28 | -11/Scrapyard | Discovered new exit (range 15) 61 | -11/Scrapyard | Entered Materials 120 | -10/Materials | Discovered new exit (range 11) 128 | -10/Materials | Discovered new exit (range 10) 152 | -10/Materials | Entered Mines 248 | -10/Mines | Met a Derelict bent on vengeance 250 | -10/Mines | Assembled infested the area 306 | -10/Mines | Build established: Mutant 468 | -10/Mines | Core integrity fell below 50% 472 | -10/Mines | Core integrity fell below 20% 482 | -10/Mines | Destroyed by D-53 Grenadier with Mini Grenade Launcher Last Messages --------------- GOAL=ESCAPE Something is scanning the area. 00180_ Searching scrap... 00180_ Found Propulsion Shielding. 00180_ Found Lgt. Cannon. 00180_ Found Med. Storage Unit. 00180_ Found Cargo Storage Unit. 00180_ Found 40 Matter. 00189_ Acquired Lgt. Cannon. 00192_ Acquired 10 matter. 00250_ ALERT: Infestation in the mines, dispatching Demolisher response squad. 00282_ K-01 Serf collects debris. 00464_ D-53 Grenadier knocked back. 00471_ Destroyed Shock Absorption System. 00471_ D-53 Grenadier Cmb. Airjet blasted off. 00471_ D-53 Grenadier knocked back. 00473_ The unstable cave ceiling collapses. 00473_ Lgt. Cannon destroyed. 00475_ The unstable cave ceiling collapses. Map ----- +----------------------------------------------------+ | !% ####### ##########?????? | | !! ### ###### #####?????????? | | ###### ########### ###????????? | | ######### ########### ## ##????????? | | ????####### ######### ##### ##????????? | | ???????##### ######## ###### ###????????? | | ?????????### ###??#######????????? | | ??????????## ###???#####?????????? | | ??????????############# ###??????????????????? | | ??????????############# ####??????????????????? | | ?????????????????????## ###???????????????????? | | ?????????????????????## ######??####??????????? | | ?????????????????????## #############?????????? | | ?????????????#####???## ## ##### ###?????????? | | ????????????? ####???## ## ##?????????? | | ???????????? ???## ###?????????? | | ???????????? ######## ####??????????? | | ??????????? ######## #####??????????? | | ???????????## ### ###????????????? | | ???????????### r % =d # ###?????????????? | | ???????????### % ###?????????????? | | ???????????## % d ##??????????????? | | ???????????### ##??????????????? | | ????????????##### ##??????????????? | | ???????????????### ###??????????????? | | ???????????????#### @ ##??????????????? | | ????????????????#### ###??????????????? | | ?????????????????### # # # ####??????????????? | | ??????????????????## # ###???????????????? | | ???????????????????? ## ##????????????????? | | ???????????????????? ## ???????????????? | | ?????????????????????### ###???????????????? | | ?????????????????????### ####???????????????? | | ??????????????????????### ####????????????????? | | ??????????????????????### ###?????????????????? | | ???????????????????????## ##??????????????????? | | ??????????????????????? ##??????????????????? | | ????????????????????????? ##??????????????????? | | ????????????????????????# ??????????????????? | | ????????????????????????####???????????????????? | | ????????????????????????####???????????????????? | | ???????????????????????????????????????????????? | | ???????????????????????????????????????????????? | | ???????????????????????????????????????????????? | | ???????????????????????????????????????????????? | | ???????????????????????????????????????????????? | | ???????????????????????????????????????????????? | | ???????????????????????????????????????????????? | | ???????????????????????????????????????????????? | | ???????????????????????????????????????????????? | +----------------------------------------------------+ Best States ------------- Heat Dissipation 25 Energy Generation 10 Energy Capacity 125 Matter Stores 300 Matter Capacity 300 Sight Range 16 Terrain Scan Density 10 Evasion (%) 40 Recoil Reduction 2 Item Schematics ----------------- None Robot Schematics ------------------ None Fabricated ------------ Nothing Repaired ---------- Nothing Studied --------- None Alien Tech Used ----------------- None Achievements -------------- None Challenges ------------ None Game ------ Seed SignalMediumReconfigurator Manual? 0 Play Time 00:04:27 Cumulative 38.1 hours Start 2026.01.19 @ 21:09:09 End 2026.01.19 @ 21:12:11 Sessions 1 Manual Loads 0 Difficulty Rogue Special Mode None Game No. 42 Rogue 42 Adventurer 0 Explorer 0 Win Type - Total 2 Types 1/0/0/1/0/0/0/0/0/0 Lore% 29 Gallery% 27 Achievement% 28 Wizard Run 0 Options --------- Layout 0 ASCII 0 Keyboard 0 Movement Mouse Keybinds 0 Fullscreen 2 Font 36/Smallcaps Map View 76x50 Zoom Use 0% Tactical HUD 1 Map Filters NONE Filters NONE Steam 1 RUN: a3544ab0-7d96-4313-b6f9-46cc33f9c1b7